bitfinex-derivatives/quotes_BTCF0:USTF0_20241223
["timestamp","ask_amount","ask_price","bid_price","bid_amount"]
[1734912703606,0.3608,94885.0,94884.0,1.600145]
[1734912704004,9.213e-05,94885.0,94884.0,1.960945]
[1734912704409,9.213e-05,94885.0,94884.0,0.413545]
[1734912704610,9.213e-05,94885.0,94884.0,0.052745]
[1734912705513,0.00209213,94885.0,94884.0,0.052745]
[1734912706111,0.00209213,94885.0,94872.0,0.01009734]
[1734912706112,0.00509213,94885.0,94874.0,0.052751]
[1734912706307,0.3608,94884.0,94874.0,0.052751]
[1734912706512,0.3608,94884.0,94864.0,0.3608]
[1734912706703,0.3608,94884.0,94861.0,0.0935]
[1734912706909,0.3608,94884.0,94870.0,0.15963914]
[1734912707309,0.3608,94884.0,94878.0,0.052748]
[1734912708912,0.3638,94884.0,94869.0,0.052753]
[1734912709514,0.052746,94883.0,94869.0,0.052753]
[1734912709719,0.052747,94881.0,94869.0,0.052753]
[1734912709918,0.3638,94884.0,94868.0,0.3608]
[1734912710117,0.3638,94884.0,94872.0,0.052752]
[1734912710414,0.3638,94884.0,94870.0,0.15963914]
[1734912710619,0.3638,94884.0,94882.0,0.052746]
[1734912711019,0.09294534,94883.0,94882.0,0.052746]
[1734912712016,0.12392712,94889.0,94888.0,0.052743]
[1734912712323,0.09299811,94895.0,94884.0,0.052745]
[1734912712620,0.09299811,94895.0,94894.0,0.3608]
[1734912713123,0.09307712,94895.0,94894.0,0.41354]
[1734912713317,0.09307712,94895.0,94894.0,1.55274]
[1734912713821,0.09307712,94895.0,94884.0,0.052745]
[1734912714008,0.3608,94889.0,94884.0,0.052745]
[1734912715114,0.3608,94889.0,94876.0,0.052749]
[1734912715311,0.3608,94889.0,94868.0,0.052754]
[1734912715312,0.3608,94881.0,94868.0,0.052754]
[1734912715515,0.3608,94870.0,94860.0,0.15963914]
[1734912715711,0.3608,94870.0,94859.0,0.052759]
[1734912715914,0.0486,94869.0,94859.0,0.052759]
[1734912716117,0.0486,94869.0,94850.0,0.15963914]
[1734912716336,0.0486,94869.0,94860.0,0.052758]
[1734912716514,0.3608,94861.0,94860.0,0.052758]
[1734912716917,0.0486,94869.0,94862.0,0.052757]
[1734912718213,0.0486,94869.0,94859.0,0.15963914]
[1734912718214,0.0486,94869.0,94864.0,0.052757]
[1734912718417,0.36136001,94870.0,94867.0,0.052754]
[1734912718724,0.3608,94885.0,94871.0,0.052753]
[1734912718725,0.36136001,94885.0,94871.0,0.052753]
[1734912718925,0.3608,94885.0,94876.0,0.052749]
[1734912719118,0.3608,94877.0,94876.0,0.052749]
[1734912720024,0.3608,94877.0,94860.0,0.15963914]
[1734912720824,0.7216,94867.0,94851.0,0.052764]
[1734912721119,0.001,94870.0,94851.0,0.052764]
[1734912721120,0.001,94870.0,94864.0,0.3608]
[1734912721321,0.001,94870.0,94869.0,0.052754]
[1734912721526,0.3608,94879.0,94869.0,0.052754]
[1734912721825,0.413549,94879.0,94869.0,0.052754]
[1734912722118,0.3608,94871.0,94869.0,0.052754]
[1734912722428,0.052755,94868.0,94865.0,0.00056]
[1734912722625,0.052755,94868.0,94856.0,0.052761]
[1734912722826,0.3608,94860.0,94856.0,0.052761]
[1734912723423,0.3608,94860.0,94859.0,0.052759]
[1734912724024,0.3608,94860.0,94859.0,1.552759]
[1734912724724,0.052753,94870.0,94859.0,1.5]
[1734912724919,0.052753,94870.0,94862.0,0.052757]
[1734912725228,0.052753,94870.0,94860.0,0.15963914]
[1734912725415,0.052753,94870.0,94859.0,1.5006]
[1734912725416,0.36136001,94871.0,94859.0,1.5006]
[1734912725615,0.3608,94860.0,94859.0,1.5]
[1734912725825,0.052761,94857.0,94847.0,0.052766]
[1734912726135,0.3608,94848.0,94837.0,0.052771]
[1734912726522,0.3608,94848.0,94838.0,0.15963914]
[1734912726728,0.3608,94848.0,94839.0,0.05277]
[1734912728733,0.3618,94848.0,94839.0,0.05277]
[1734912729630,0.3608,94840.0,94836.0,0.00158157]
[1734912729933,0.36244,94848.0,94840.0,0.052769]
[1734912730235,0.3618,94848.0,94840.0,0.052769]
[1734912730420,0.3618,94848.0,94836.0,0.00158157]
[1734912730622,0.3618,94848.0,94842.0,0.052769]
[1734912730824,0.3638,94848.0,94843.0,1.5]
[1734912731621,0.052766,94847.0,94843.0,1.5]
[1734912732031,0.3608,94846.0,94843.0,1.5]
[1734912732831,0.3608,94846.0,94844.0,0.052767]
[1734912734529,0.00660001,94848.0,94847.0,0.052766]
[1734912734740,0.004,94846.0,94845.0,0.413567]
[1734912735534,0.052765,94849.0,94843.0,1.50056]
[1734912735727,0.006,94846.0,94837.0,0.06273487]
[1734912735924,0.006,94846.0,94837.0,0.00996287]
[1734912736127,0.006,94846.0,94836.0,0.00158157]
[1734912736632,0.006,94846.0,94841.0,0.052769]
[1734912737336,0.006,94846.0,94844.0,0.052767]
[1734912737737,0.3608,94855.0,94852.0,0.052762]
[1734912737936,8.418e-05,94856.0,94845.0,0.37664]
[1734912738238,8.418e-05,94856.0,94855.0,0.052761]
[1734912738939,0.052764,94851.0,94845.0,0.3608]
[1734912739233,0.3608,94847.0,94838.0,0.05277]
[1734912739633,0.413565,94847.0,94838.0,0.05277]
[1734912739832,0.3608,94847.0,94836.0,0.01153102]
[1734912740031,0.3608,94847.0,94845.0,0.052765]
[1734912740737,0.3608,94847.0,94836.0,0.01153102]
[1734912740939,0.3608,94847.0,94837.0,1.5]
[1734912741237,0.3648,94847.0,94842.0,0.052763]
[1734912741735,0.3648,94847.0,94837.0,1.50056]
[1734912741939,0.3608,94847.0,94837.0,1.5]
[1734912742439,0.3608,94847.0,94836.0,0.06429802]
[1734912742638,0.052762,94846.0,94836.0,0.06429802]
[1734912743042,0.052762,94846.0,94837.0,1.5]
[1734912743736,0.052762,94846.0,94836.0,0.06429802]
[1734912744041,0.052762,94846.0,94836.0,0.00158157]
[1734912744042,0.001,94846.0,94836.0,0.00158157]
[1734912744231,0.3608,94837.0,94836.0,0.00158157]
[1734912745339,0.3658,94837.0,94836.0,0.00158157]
[1734912746040,0.3658,94837.0,94830.0,9.554e-05]
[1734912746351,0.05277,94831.0,94830.0,9.554e-05]
[1734912746539,0.72716001,94837.0,94830.0,9.554e-05]
[1734912746838,0.7266,94837.0,94830.0,9.554e-05]
[1734912747143,0.7276,94837.0,94830.0,9.554e-05]
[1734912747336,0.3668,94837.0,94830.0,9.554e-05]
[1734912747738,0.3658,94837.0,94830.0,9.554e-05]
[1734912747935,0.005,94837.0,94834.0,0.3608]
[1734912748134,0.005,94837.0,94836.0,0.052767]
[1734912748629,0.005,94837.0,94830.0,9.554e-05]
[1734912748834,0.052768,94836.0,94830.0,9.554e-05]
[1734912749338,0.052769,94833.0,94830.0,9.554e-05]
[1734912749530,0.005,94837.0,94830.0,9.554e-05]
[1734912749729,0.05277,94831.0,94830.0,9.554e-05]
[1734912750027,0.41357,94831.0,94830.0,9.554e-05]
[1734912751534,0.3608,94831.0,94830.0,9.554e-05]
[1734912751740,0.004,94831.0,94830.0,9.554e-05]
[1734912753242,0.004,94831.0,94830.0,0.05286554]
[1734912753848,0.3608,94841.0,94830.0,1.50009554]
[1734912754045,0.004,94831.0,94830.0,9.554e-05]
[1734912754532,0.052767,94836.0,94830.0,9.554e-05]
[1734912754738,0.004,94831.0,94830.0,9.554e-05]
[1734912755146,0.3608,94841.0,94830.0,9.554e-05]
[1734912755338,0.004,94831.0,94830.0,0.05286554]
[1734912756034,0.3608,94860.0,94830.0,0.14409554]
[1734912756346,0.052755,94857.0,94846.0,0.3608]
[1734912756544,0.052755,94857.0,94846.0,0.413561]
[1734912757141,0.052756,94855.0,94846.0,0.413561]
[1734912757342,0.05276,94849.0,94846.0,0.3608]
[1734912757646,0.05276,94849.0,94844.0,0.10678215]
[1734912758043,0.052761,94846.0,94844.0,0.10678215]
[1734912758243,0.052761,94846.0,94837.0,0.052766]
[1734912758444,0.052761,94846.0,94836.0,0.10678215]
[1734912758645,0.36136001,94849.0,94836.0,0.12262215]
[1734912758838,0.3608,94849.0,94841.0,0.052764]
[1734912759040,0.0468,94855.0,94841.0,0.413564]
[1734912759352,0.05276,94849.0,94848.0,0.25250627]
[1734912760136,0.05676,94849.0,94848.0,0.25250627]
[1734912760337,0.05676,94849.0,94843.0,0.25250627]
[1734912760744,0.05276,94849.0,94843.0,0.25250627]
[1734912761050,0.005,94849.0,94843.0,0.25250627]
[1734912761358,0.052762,94844.0,94843.0,0.25250627]
[1734912762038,0.052762,94844.0,94842.0,0.25250627]
[1734912762940,0.3608,94843.0,94842.0,0.25250627]
[1734912763737,0.3608,94843.0,94840.0,0.25250627]
[1734912764142,0.005,94844.0,94841.0,0.3608]
[1734912764343,0.005,94844.0,94843.0,0.052763]
[1734912764554,0.001,94843.0,94842.0,0.0955]
[1734912764741,0.3608,94851.0,94842.0,0.0955]
[1734912764947,0.41467102,94866.0,94855.0,0.052756]
[1734912765255,0.3608,94866.0,94855.0,0.052756]
[1734912766148,0.1560837,94873.0,94865.0,0.05275]
[1734912766348,0.1560837,94873.0,94872.0,0.3608]
[1734912766544,0.052744,94878.0,94872.0,0.3608]
[1734912767751,0.053744,94878.0,94872.0,0.3618]
[1734912768867,0.001,94878.0,94872.0,0.3618]
[1734912769048,0.001,94878.0,94876.0,0.052744]
[1734912769761,0.001,94878.0,94872.0,0.3618]
[1734912769762,0.0473,94897.0,94887.0,0.052738]
[1734912770058,0.0473,94897.0,94891.0,0.3608]
[1734912770454,0.1560837,94904.0,94891.0,0.3608]
[1734912770650,0.1560837,94904.0,94893.0,0.052735]
[1734912770853,0.36136001,94907.0,94893.0,0.052735]
[1734912771048,0.3608,94907.0,94896.0,0.052733]
[1734912771249,0.009,94897.0,94896.0,0.052733]
[1734912771659,0.3608,94907.0,94896.0,0.052733]
[1734912771859,0.009,94899.0,94897.0,0.10678215]
[1734912772056,0.009,94899.0,94898.0,0.052732]
[1734912772453,0.009,94899.0,94891.0,0.37104353]
[1734912773363,0.009,94899.0,94898.0,0.052732]
[1734912773561,0.3608,94907.0,94896.0,0.001]
[1734912773761,0.3608,94907.0,94897.0,0.10678215]
[1734912774258,0.36136001,94918.0,94900.0,0.3608]
[1734912774559,0.3608,94918.0,94912.0,0.052724]
[1734912774759,0.3608,94918.0,94908.0,0.46758215]
[1734912774951,0.3608,94918.0,94917.0,0.052722]
[1734912776255,0.3608,94918.0,94908.0,0.46758215]
[1734912776854,0.3618,94918.0,94908.0,0.46758215]
[1734912777457,0.3618,94918.0,94908.0,0.47781515]
[1734912777658,0.3608,94918.0,94908.0,0.47781515]
[1734912777962,0.3688,94918.0,94908.0,0.47881515]
[1734912778353,0.3688,94918.0,94908.0,0.11701515]
[1734912778554,0.008,94918.0,94909.0,0.01584]
[1734912778754,0.0468,94936.0,94929.0,0.052715]
[1734912778965,0.0468,94936.0,94926.0,0.10678215]
[1734912780164,0.0468,94936.0,94926.0,0.46758215]
[1734912780365,0.0468,94936.0,94932.0,0.052713]
[1734912780669,0.3608,94950.0,94940.0,0.052709]
[1734912780864,0.052699,94959.0,94940.0,0.15949115]
[1734912781165,0.052711,94936.0,94932.0,0.00056]
[1734912781370,0.0463,94935.0,94924.0,0.3608]
[1734912781659,0.0463,94935.0,94926.0,0.003]
[1734912781861,0.052716,94929.0,94926.0,0.003]
[1734912782060,0.052716,94927.0,94912.0,0.3608]
[1734912782366,0.05272,94921.0,94912.0,0.3608]
[1734912783070,0.049,94928.0,94910.0,0.10678215]
[1734912783268,0.049,94928.0,94910.0,0.15950815]
[1734912783888,0.052719,94923.0,94910.0,0.052726]
[1734912785062,0.053719,94923.0,94910.0,0.052726]
[1734912785567,0.3608,94917.0,94903.0,1.50056]
[1734912785768,0.3608,94917.0,94903.0,1.5]
[1734912785959,0.052722,94916.0,94903.0,1.552729]
[1734912786155,0.052722,94916.0,94903.0,1.5]
[1734912786971,0.052722,94916.0,94905.0,0.052728]
[1734912787362,0.052724,94914.0,94903.0,1.50056]
[1734912787664,0.0466,94913.0,94903.0,1.5]
[1734912789369,0.0466,94913.0,94902.0,0.05273]
[1734912789869,0.36136001,94917.0,94903.0,1.5]
[1734912790060,0.3608,94917.0,94907.0,0.10678215]
[1734912790466,0.3608,94917.0,94916.0,0.052722]
[1734912791068,0.3608,94917.0,94916.0,1.552722]
[1734912791967,0.36136001,94929.0,94923.0,0.052718]
[1734912792173,0.3608,94929.0,94923.0,0.052718]
[1734912793574,0.052711,94937.0,94927.0,0.052716]
[1734912793769,0.00056001,94938.0,94929.0,0.052715]
[1734912793975,0.00056001,94938.0,94936.0,0.052711]
[1734912794373,0.00056001,94939.0,94937.0,0.3608]
[1734912794677,0.23115184,94950.0,94923.0,0.01015643]
[1734912794678,0.052711,94938.0,94926.0,0.052717]
[1734912794977,0.3608,94942.0,94923.0,0.3618]
[1734912794978,0.052716,94928.0,94923.0,0.3618]
[1734912795468,0.052716,94928.0,94923.0,0.3608]
[1734912796276,0.060716,94928.0,94923.0,0.3618]
[1734912796970,0.008,94928.0,94923.0,0.3618]
[1734912797672,0.008,94928.0,94923.0,0.001]
[1734912798577,0.052718,94925.0,94923.0,0.001]
[1734912799876,0.008,94928.0,94923.0,0.001]
[1734912800972,0.17708469,94930.0,94917.0,0.06263151]
[1734912801170,0.008,94925.0,94923.0,0.001]
[1734912801566,0.12436969,94930.0,94924.0,1.5]
[1734912801779,0.36136001,94935.0,94929.0,0.052715]
[1734912801971,0.3608,94935.0,94929.0,0.052715]
[1734912802484,0.008,94925.0,94924.0,1.553318]
[1734912802668,0.008,94925.0,94924.0,1.552718]
[1734912802867,0.1560837,94937.0,94932.0,0.052713]
[1734912803082,0.008,94935.0,94932.0,0.052713]
[1734912803273,0.12502138,94934.0,94932.0,0.052713]
[1734912803472,0.12502138,94934.0,94933.0,0.3608]
[1734912804080,0.12502138,94934.0,94929.0,0.001]
[1734912804583,0.052717,94926.0,94918.0,0.31563284]
[1734912805278,0.008,94934.0,94918.0,0.31563284]
[1734912805479,0.008,94934.0,94925.0,0.052717]
[1734912805681,0.12502138,94927.0,94925.0,0.052717]
[1734912805872,0.008,94926.0,94925.0,0.052717]
[1734912807883,0.12502138,94931.0,94921.0,0.3608]
[1734912808081,0.12502138,94931.0,94921.0,0.3618]
[1734912808481,0.12502138,94931.0,94921.0,0.3608]
[1734912808681,0.008,94926.0,94925.0,0.001]
[1734912809075,0.052716,94929.0,94921.0,0.3608]
[1734912809276,0.052716,94929.0,94921.0,0.3618]
[1734912809784,0.008,94926.0,94925.0,0.001]
[1734912810682,0.0563,94926.0,94925.0,0.001]
[1734912811486,0.0947,94926.0,94913.0,0.613177]
[1734912811688,0.413519,94922.0,94921.0,0.001]
[1734912812483,0.052724,94914.0,94908.0,0.252377]
[1734912813680,0.052724,94914.0,94903.0,0.052729]
[1734912814686,0.005,94914.0,94913.0,0.052724]
[1734912815082,0.12502138,94918.0,94917.0,0.052722]
[1734912815286,0.12502138,94918.0,94917.0,1.552722]
[1734912815780,0.052716,94929.0,94917.0,1.552722]
[1734912816574,0.052716,94929.0,94921.0,0.052719]
[1734912816774,0.48642139,94931.0,94929.0,0.052715]
[1734912816979,0.12502138,94931.0,94929.0,0.052715]
[1734912817386,0.12502138,94930.0,94929.0,0.052715]
[1734912818683,0.1560837,94939.0,94927.0,0.0473]
[1734912818684,0.0469,94940.0,94927.0,0.0473]
[1734912818884,0.0469,94940.0,94935.0,0.3608]
[1734912819586,0.12502138,94946.0,94935.0,0.3608]
[1734912819778,0.12502138,94946.0,94944.0,0.052706]
[1734912820289,0.12502138,94948.0,94944.0,0.052706]
[1734912820587,0.12502138,94948.0,94946.0,0.052706]
[1734912821191,1e-08,94956.0,94955.0,0.052701]
[1734912821413,0.0494,94987.0,94955.0,0.3608]
[1734912821584,0.0494,94987.0,94963.0,0.413496]
[1734912822093,0.12503818,94966.0,94964.0,0.052696]
[1734912822286,0.12503818,94966.0,94964.0,0.098396]
[1734912822992,0.18730045,94984.0,94983.0,0.052685]
[1734912823988,0.1,95000.0,94994.0,0.052679]
[1734912824193,0.1,95000.0,94995.0,0.3608]
[1734912825397,0.1,95000.0,94995.0,0.3658]
[1734912825900,0.1,95000.0,94998.0,0.052677]
[1734912826998,0.36294001,95020.0,95014.0,0.052668]
[1734912827197,0.00158,95020.0,95014.0,0.052668]
[1734912827399,0.00158,95020.0,95019.0,0.3608]
[1734912828088,0.3608,95039.0,95019.0,0.3608]
[1734912828293,0.051,95043.0,95035.0,0.052656]
[1734912828591,0.051,95043.0,95037.0,0.413455]
[1734912828788,0.3608,95057.0,95037.0,0.3608]
[1734912828990,0.3608,95057.0,95047.0,0.10678215]
[1734912829185,0.3608,95057.0,95050.0,0.052648]
[1734912829385,0.3608,95057.0,95047.0,0.10678215]
[1734912829797,0.3608,95049.0,95040.0,0.10678215]
[1734912830294,0.3608,95049.0,95039.0,0.15951947]
[1734912830992,0.052652,95043.0,95035.0,0.009]
[1734912831191,0.413453,95041.0,95035.0,0.009]
[1734912831602,0.413453,95041.0,95039.0,0.001]
[1734912831900,0.0481,95040.0,95039.0,0.001]
[1734912832101,0.0481,95040.0,95033.0,8.586e-05]
[1734912832290,0.052654,95039.0,95035.0,0.009]
[1734912832798,0.052654,95039.0,95033.0,8.586e-05]
[1734912833701,0.0481,95040.0,95033.0,8.586e-05]
[1734912833702,0.052657,95036.0,95033.0,8.586e-05]
[1734912834300,0.0481,95040.0,95033.0,8.586e-05]
[1734912834498,0.3608,95049.0,95033.0,8.586e-05]
[1734912834693,0.3608,95049.0,95041.0,0.052653]
[1734912835500,0.3608,95057.0,95047.0,0.052649]
[1734912836510,0.3608,95057.0,95049.0,0.052649]
[1734912837702,0.46196001,95068.0,95049.0,0.052649]
[1734912837909,0.052643,95060.0,95049.0,0.052649]
[1734912838295,0.4614,95068.0,95049.0,0.006]
[1734912838499,0.052639,95067.0,95051.0,0.052648]
[1734912838704,0.052639,95067.0,95057.0,0.052644]
[1734912839404,0.052641,95064.0,95049.0,0.002]
[1734912839802,0.052645,95057.0,95049.0,0.002]
[1734912840206,0.3608,95058.0,95049.0,0.002]
[1734912840207,0.3608,95050.0,95049.0,0.002]
[1734912841198,0.3608,95050.0,95035.0,0.06282351]
[1734912841402,0.052654,95047.0,95035.0,0.05266]
[1734912842512,0.052654,95047.0,95035.0,0.05366]
[1734912842698,0.052654,95047.0,95037.0,0.052659]
[1734912843004,0.36336001,95050.0,95045.0,0.052654]
[1734912843203,0.3628,95050.0,95035.0,0.05366]
[1734912843408,0.052654,95046.0,95035.0,0.05366]
[1734912843606,0.3608,95036.0,95035.0,0.05366]
[1734912843807,0.3608,95036.0,95035.0,0.001]
[1734912844007,0.3608,95036.0,95026.0,0.052665]
[1734912844304,0.10256,95035.0,95017.0,0.05267]
[1734912844499,0.10256,95035.0,95020.0,0.052668]
[1734912845310,0.10256,95035.0,95033.0,0.00108586]
[1734912845908,0.10256,95035.0,95033.0,0.00808586]
[1734912846615,0.3608,95034.0,95033.0,0.00808586]
[1734912847312,0.6608,95034.0,94990.0,0.15951947]
[1734912847509,0.052673,95012.0,95001.0,0.052679]
[1734912847906,0.3608,95014.0,94998.0,0.01011351]
[1734912848106,0.3608,95014.0,95000.0,0.15951947]
[1734912848307,0.3608,95014.0,95013.0,0.052672]
[1734912848619,8.586e-05,95014.0,95013.0,0.052672]
[1734912849115,8.586e-05,95014.0,95008.0,1.50056]
[1734912849116,0.002,95012.0,95008.0,1.50056]
[1734912849308,0.002,95012.0,95008.0,1.5]
[1734912850809,0.3608,95013.0,95008.0,1.5]
[1734912851617,0.009,95012.0,95008.0,1.501]
[1734912852018,0.3698,95013.0,95008.0,1.501]
[1734912852819,0.3698,95013.0,95009.0,0.052675]
[1734912854020,0.009,95013.0,95009.0,0.052675]
[1734912854218,8.586e-05,95014.0,95009.0,0.052675]
[1734912855619,0.00808586,95014.0,95009.0,0.001]
[1734912856824,0.00808586,95014.0,95012.0,0.052672]
[1734912857020,0.092735,95018.0,95017.0,0.05267]
[1734912857329,0.092735,95018.0,95017.0,1.55267]
[1734912857724,0.092735,95018.0,95017.0,1.56847]
[1734912858028,0.092735,95032.0,95021.0,0.052667]
[1734912858229,0.092735,95032.0,95017.0,1.5158]
[1734912858230,0.092735,95032.0,95024.0,0.052666]
[1734912858827,0.092735,95032.0,95018.0,0.065]
[1734912859040,0.092735,95032.0,95020.0,0.10643103]
[1734912859233,0.36136001,95035.0,95020.0,0.10643103]
[1734912859429,0.3608,95035.0,95028.0,0.052664]
[1734912860035,0.3608,95035.0,95019.0,0.104469]
[1734912860332,0.3608,95027.0,95019.0,0.052669]
[1734912861344,0.3608,95027.0,95025.0,0.052665]
[1734912861736,0.002,95032.0,95012.0,0.3608]
[1734912861937,0.002,95032.0,95031.0,0.052662]
[1734912862336,0.3608,95034.0,95031.0,0.052662]
[1734912862540,0.092735,95035.0,95031.0,0.052662]
[1734912862734,0.092735,95035.0,95033.0,0.052661]
[1734912863742,0.3608,95036.0,95033.0,0.052661]
[1734912864039,0.3608,95036.0,95027.0,0.1003]
[1734912864244,0.3608,95028.0,95026.0,1.56345335]
[1734912864438,0.3608,95028.0,95026.0,1.56289335]
[1734912865651,0.00056001,95036.0,95026.0,1.51022835]
[1734912865838,0.092735,95040.0,95034.0,0.05266]
[1734912866033,0.3608,95035.0,95034.0,0.05266]
[1734912866544,0.092735,95039.0,95038.0,0.052658]
[1734912866741,0.092735,95039.0,95038.0,0.413458]
[1734912867347,0.092735,95039.0,95038.0,1.913458]
[1734912867544,0.3608,95055.0,95038.0,1.8608]
[1734912867738,0.3608,95055.0,95052.0,0.05265]
[1734912868652,0.092735,95059.0,95052.0,0.05265]
[1734912869042,0.092735,95059.0,95057.0,0.052648]
[1734912869752,0.3608,95063.0,95057.0,0.052648]
[1734912871454,0.3608,95063.0,95057.0,0.061648]
[1734912873353,0.3608,95063.0,95057.0,0.009]
[1734912873653,0.3608,95063.0,95061.0,0.052646]
[1734912874652,0.092735,95071.0,95061.0,0.052646]
[1734912874951,0.3608,95066.0,95061.0,0.009]
[1734912875148,0.413445,95062.0,95061.0,0.009]
[1734912875346,0.052652,95049.0,95046.0,0.18782106]
[1734912875649,0.3608,95047.0,95046.0,0.18782106]
[1734912876549,0.3608,95047.0,95034.0,0.05266]
[1734912876856,0.3608,95039.0,95034.0,0.06322741]
[1734912878453,0.3608,95039.0,95025.0,0.24048606]
[1734912878649,0.05266,95035.0,95034.0,0.001]
[1734912879051,0.0512,95038.0,95031.0,0.052662]
[1734912879244,0.37036001,95039.0,95034.0,0.001]
[1734912879449,0.3698,95039.0,95034.0,0.001]
[1734912880748,0.3608,95039.0,95032.0,0.052661]
[1734912880948,0.009,95035.0,95034.0,0.001]
[1734912881460,0.052663,95029.0,95028.0,0.18782106]
[1734912881756,0.413463,95029.0,95028.0,0.18782106]
[1734912882648,0.413463,95029.0,95026.0,0.00157837]
[1734912882844,0.422463,95029.0,95028.0,0.001]
[1734912883657,0.052667,95022.0,95021.0,0.18782106]
[1734912883858,0.413467,95022.0,95020.0,0.18782106]
[1734912884059,0.1011,95021.0,95020.0,0.18782106]
[1734912884455,0.0487,95021.0,95020.0,0.18782106]
[1734912884757,0.36136001,95022.0,95021.0,0.052668]
[1734912884952,0.3608,95022.0,95021.0,0.052668]
[1734912885153,0.3608,95022.0,95021.0,1.552668]
[1734912886353,0.3698,95022.0,95021.0,1.553668]
[1734912887954,0.3698,95022.0,95021.0,1.74148906]
[1734912888153,0.009,95022.0,95021.0,1.74148906]
[1734912888553,0.36136001,95029.0,95021.0,1.74048906]
[1734912888849,0.008,95022.0,95021.0,1.74148906]
[1734912889857,0.3658,95029.0,95021.0,0.18782106]
[1734912890163,0.052665,95028.0,95021.0,0.18782106]
[1734912890463,0.36640001,95029.0,95021.0,0.18782106]
[1734912890664,0.3608,95027.0,95016.0,0.18782106]
[1734912890856,0.3608,95017.0,95016.0,0.18782106]
[1734912891951,0.3678,95017.0,95016.0,0.18782106]
[1734912892158,0.3678,95017.0,95012.0,0.052673]
[1734912892455,0.007,95017.0,95015.0,0.052672]
[1734912895161,0.007,95017.0,95016.0,0.052671]
[1734912895763,0.3608,95027.0,95022.0,0.052668]
[1734912897066,0.3608,95027.0,95023.0,0.052667]
[1734912897459,0.3608,95027.0,95025.0,0.052666]
[1734912898665,0.3698,95027.0,95025.0,0.052666]
[1734912898968,0.3698,95027.0,95022.0,0.18865449]
[1734912899169,0.3678,95027.0,95022.0,0.18865449]
[1734912899769,0.052666,95025.0,95022.0,0.18865449]
[1734912900363,0.37036001,95027.0,95009.0,0.35372]
[1734912900364,0.37036001,95027.0,95019.0,0.18865449]
[1734912900557,0.052668,95022.0,95019.0,0.18865449]
[1734912901366,0.37040001,95027.0,95019.0,0.18865449]
[1734912901569,0.052669,95020.0,95019.0,0.18865449]
[1734912902067,0.052669,95020.0,95012.0,0.18865449]
[1734912902257,0.3608,95016.0,95012.0,0.18865449]
[1734912903065,0.009,95022.0,95012.0,0.18865449]
[1734912903264,0.3608,95019.0,95012.0,4.9e-07]
[1734912903564,0.052688,94986.0,94985.0,0.18300714]
[1734912903866,0.052688,94986.0,94973.0,0.47648021]
[1734912903867,0.052694,94974.0,94973.0,0.47648021]
[1734912904065,0.413494,94974.0,94973.0,0.16352505]
[1734912904271,0.3608,94974.0,94952.0,0.26354859]
[1734912904577,0.3608,94974.0,94930.0,0.052718]
[1734912904578,0.7216,94953.0,94930.0,0.052718]
[1734912904766,0.7216,94953.0,94915.0,0.0158]
[1734912904767,0.3608,94936.0,94915.0,0.0158]
[1734912904967,0.3608,94936.0,94934.0,0.052716]
[1734912905265,0.3608,94936.0,94935.0,0.65649167]
[1734912905671,0.052707,94952.0,94935.0,0.35372]
[1734912905672,0.21743365,94949.0,94935.0,0.35372]
[1734912905872,0.20506081,94952.0,94951.0,0.052707]
[1734912906377,0.20506081,94952.0,94951.0,1.552707]
[1734912906573,0.2484956,94969.0,94951.0,1.5]
[1734912906772,0.2484956,94969.0,94946.0,0.3608]
[1734912906975,0.3608,94962.0,94947.0,0.052709]
[1734912907173,0.3608,94962.0,94948.0,0.052709]
[1734912907174,0.3608,94949.0,94948.0,0.052709]
[1734912907373,0.54739519,94949.0,94948.0,0.052709]
[1734912907686,0.18659519,94949.0,94948.0,1.552709]
[1734912907971,0.3608,94962.0,94942.0,0.15982388]
[1734912908179,0.009,94952.0,94951.0,0.052707]
[1734912908880,0.18652836,94953.0,94937.0,0.3608]
[1734912909176,0.18652836,94953.0,94952.0,1.5]
[1734912909377,0.18652836,94954.0,94952.0,1.552706]
[1734912910178,0.18652836,94955.0,94952.0,1.552706]
[1734912910965,0.3608,94953.0,94952.0,1.552706]
[1734912912376,0.3668,94953.0,94952.0,1.552706]
[1734912912970,0.3678,94953.0,94952.0,1.552706]
[1734912913372,0.3678,94953.0,94952.0,1.5]
[1734912914583,0.3678,94953.0,94943.0,0.01023207]
[1734912914584,0.3678,94953.0,94947.0,0.052709]
[1734912914875,0.3678,94953.0,94949.0,0.052708]
[1734912914876,0.3608,94953.0,94949.0,0.052708]
[1734912915087,0.24076325,94970.0,94968.0,0.052697]
[1734912915277,0.3608,94971.0,94968.0,0.052697]
[1734912915582,0.3608,94971.0,94969.0,1.5]
[1734912916381,0.29303951,94970.0,94961.0,0.1022]
[1734912916678,0.29303951,94970.0,94961.0,0.0504]
[1734912916874,0.29303951,94970.0,94962.0,1.5]
[1734912917076,0.29303951,94970.0,94962.0,1.552701]
[1734912917383,0.29303951,94969.0,94965.0,0.052699]
[1734912917580,0.29303951,94969.0,94962.0,1.50064]
[1734912917780,0.29303951,94969.0,94967.0,0.052698]
[1734912918278,0.00192,94971.0,94969.0,0.052697]
[1734912918480,0.34532424,94978.0,94968.0,0.4105]
[1734912918683,0.34532424,94978.0,94972.0,0.052696]
[1734912918880,0.34532424,94978.0,94962.0,1.50164]
[1734912918881,0.3608,94974.0,94962.0,1.50164]
[1734912919076,0.3608,94964.0,94962.0,0.001]
[1734912919677,0.3608,94964.0,94953.0,0.06330069]
[1734912919979,0.3608,94964.0,94953.0,0.052706]
[1734912919980,0.29306877,94963.0,94953.0,0.052706]